fUSD/lending_fUSD_20250221
["ID","MTS","AMOUNT","RATE_DAILY","PERIOD"]
[353962276,1740167499834,-2164.87,0.00011863,2]
[353962277,1740167499843,-1659.4,0.00011863,2]
[353962278,1740167499852,-2453.21,0.00011863,2]
[353962279,1740167499861,-561.26,0.00011863,2]
[353962280,1740167499871,-1850.75,0.00011863,2]
[353962281,1740167499880,-500.0,0.00011863,2]
[353962282,1740167499889,-500.0,0.00011863,2]
[353962283,1740167499899,-500.0,0.00011863,2]
[353962284,1740167499908,-601.04,0.00011863,2]
[353962285,1740167499917,-822.39,0.00011863,2]
[353962286,1740167499927,-4625.02,0.00011863,2]
[353962287,1740167499935,-734.9,0.00011863,2]
[353962288,1740167499945,-1777.87,0.00011863,2]
[353962289,1740167499954,-500.0,0.00011863,2]
[353962290,1740167499964,-546.46,0.00011863,2]
[353962291,1740167499975,-394.35623265,0.00011863,2]
[353962292,1740167499988,-500.0,0.00011863,2]
[353962293,1740167499997,-500.0,0.00011863,2]
[353962294,1740167500006,-1630.09,0.00011863,2]
[353962295,1740167500016,-1542.1,0.00011863,2]
[353962296,1740167500025,-547.15,0.00011863,2]
[353962297,1740167500034,-2224.84,0.00011863,2]
[353962298,1740167500044,-899.67,0.00011863,2]
[353962299,1740167500053,-500.0,0.00011863,2]
[353962300,1740167500063,-943.17,0.00011863,2]
[353962301,1740167500072,-807.22,0.00011863,2]
[353962302,1740167500082,-1405.51,0.00011863,2]
[353962303,1740167500092,-1451.47,0.00011863,2]
[353962304,1740167500101,-773.56,0.00011863,2]
[353962305,1740167500111,-863.09,0.00011863,2]
[353962306,1740167500120,-1030.82,0.00011863,2]
[353962307,1740167500130,-1414.2,0.00011863,2]
[353962308,1740167500139,-2629.27,0.00011863,2]
[353962309,1740167500148,-1956.95,0.00011863,2]
[353962310,1740167500158,-591.21,0.00011863,2]
[353962311,1740167500168,-572.93,0.00011863,2]
[353962312,1740167500177,-500.0,0.00011863,2]
[353962313,1740167500189,-500.0,0.00011863,2]
[353962314,1740167500199,-1071.61,0.00011863,2]
[353962315,1740167500210,-1979.81,0.00011863,2]
[353962316,1740167500220,-500.0,0.00011863,2]
[353962317,1740167500232,-1063.77,0.00011863,2]
[353962318,1740167500241,-500.0,0.00011863,2]
[353962319,1740167500250,-511.32,0.00011863,2]
[353962320,1740167500260,-1836.76,0.00011863,2]
[353962321,1740167500269,-500.0,0.00011863,2]
[353962322,1740167500278,-523.07,0.00011863,2]
[353962323,1740167500287,-500.0,0.00011863,2]
[353962324,1740167500297,-1918.18,0.00011863,2]
[353962325,1740167500307,-500.0,0.00011863,2]
[353962326,1740167500316,-1627.61,0.00011863,2]
[353962327,1740167500326,-500.0,0.00011863,2]
[353962328,1740167500335,-546.11,0.00011863,2]
[353962329,1740167500345,-645.43,0.00011863,2]
[353962330,1740167500354,-1484.14,0.00011863,2]
[353962331,1740167500363,-500.0,0.00011863,2]
[353962332,1740167500372,-2455.95,0.00011863,2]
[353962333,1740167500381,-667.63,0.00011863,2]
[353962334,1740167500391,-2372.7,0.00011863,2]
[353962335,1740167500400,-908.08,0.00011863,2]
[353962336,1740167500409,-626.59,0.00011863,2]
[353962337,1740167500418,-500.0,0.00011863,2]
[353962338,1740167500428,-500.0,0.00011863,2]
[353962339,1740167500437,-911.32,0.00011863,2]
[353962340,1740167500447,-5546.19,0.00011863,2]
[353962341,1740167500456,-1353.06,0.00011863,2]
[353962342,1740167500465,-1549.06,0.00011863,2]
[353962343,1740167500478,-1073.32,0.00011863,2]
[353962344,1740167500488,-1586.49,0.00011863,2]
[353962345,1740167500497,-4218.35,0.00011863,2]
[353962346,1740167500506,-1546.99,0.00011863,2]
[353962347,1740167500516,-560.32,0.00011863,2]
[353962348,1740167500526,-1702.81,0.00011863,2]
[353962349,1740167500535,-500.0,0.00011863,2]
[353962350,1740167500544,-1764.24,0.00011863,2]
[353962351,1740167500553,-1149.42,0.00011863,2]
[353962352,1740167500563,-735.06,0.00011863,2]
[353962353,1740167500572,-500.0,0.00011863,2]
[353962354,1740167500582,-1183.25,0.00011863,2]
[353962355,1740167500592,-636.23,0.00011863,2]
[353962356,1740167500601,-500.0,0.00011863,2]
[353962357,1740167500611,-601.47,0.00011863,2]
[353962358,1740167500620,-500.0,0.00011863,2]
[353962359,1740167500629,-2271.32,0.00011863,2]
[353962360,1740167500638,-500.0,0.00011863,2]
[353962361,1740167500647,-541.45,0.00011863,2]
[353962362,1740167500657,-876.43,0.00011863,2]
[353962363,1740167500666,-916.64,0.00011863,2]
[353962364,1740167500675,-2152.05,0.00011863,2]
[353962365,1740167500684,-1511.65,0.00011863,2]
[353962366,1740167500694,-553.9,0.00011863,2]
[353962367,1740167500703,-500.0,0.00011863,2]
[353962368,1740167500713,-3165.99,0.00011863,2]
[353962369,1740167500728,-500.0,0.00011863,2]
[353962370,1740167500737,-805.35,0.00011863,2]
[353962371,1740167500747,-714.44,0.00011863,2]
[353962372,1740167500757,-517.12,0.00011863,2]
[353962373,1740167500767,-2840.89,0.00011863,2]
[353962374,1740167500777,-500.0,0.00011863,2]
[353962375,1740167500787,-2330.01,0.00011863,2]
[353962376,1740167500799,-1123.03,0.00011863,2]
[353962377,1740167500809,-1483.29,0.00011863,2]
[353962378,1740167500818,-706.1,0.00011863,2]
[353962379,1740167500828,-500.0,0.00011863,2]
[353962380,1740167500839,-1141.98,0.00011863,2]
[353962381,1740167500848,-762.79,0.00011863,2]
[353962382,1740167500857,-1041.84,0.00011863,2]
[353962383,1740167500867,-1531.08,0.00011863,2]
[353962384,1740167500877,-1281.67,0.00011863,2]
[353962385,1740167500887,-555.85,0.00011863,2]
[353962386,1740167500897,-521.28,0.00011863,2]
[353962387,1740167500907,-1097.81,0.00011863,2]
[353962388,1740167500917,-1217.74,0.00011863,2]
[353962389,1740167500926,-500.0,0.00011863,2]
[353962390,1740167500936,-400.0,0.000119,4]
[353962391,1740167500946,-500.0,0.00011943,2]
[353962392,1740167500956,-150.0,0.00011944,2]
[353962393,1740167500966,-575.69,0.00011944,2]
[353962394,1740167500978,-500.0,0.00011944,2]
[353962395,1740167500988,-817.79,0.00011944,2]
[353962396,1740167500997,-791.84,0.00011944,2]
[353962397,1740167501008,-500.0,0.00011944,2]
[353962398,1740167501018,-757.52,0.00011944,2]
[353962399,1740167501027,-700.04,0.00011944,2]
[353962400,1740167501038,-500.0,0.00011944,2]
[353962401,1740167501048,-1574.15,0.00011944,2]
[353962402,1740167501058,-1900.25,0.00011944,2]
[353962403,1740167501067,-1427.28,0.00011944,2]
[353962404,1740167501077,-1911.79,0.00011944,2]
[353962405,1740167501086,-500.0,0.00011944,2]
[353962406,1740167501095,-1859.7,0.00011944,2]
[353962407,1740167501105,-1540.98,0.00011944,2]
[353962408,1740167501115,-933.0,0.00011944,2]
[353962409,1740167501125,-2806.52,0.00011944,2]
[353962410,1740167501134,-500.0,0.00011945,2]
[353962411,1740167501143,-500.0,0.00011945,2]
[353962412,1740167501153,-500.0,0.00011945,2]
[353962413,1740167501162,-681.16,0.00011945,2]
[353962414,1740167501171,-723.6,0.00011945,2]
[353962415,1740167501181,-1031.25,0.00011945,2]
[353962416,1740167501192,-687.99,0.00011945,2]
[353962417,1740167501201,-229.526167,0.00011945,2]
[353962418,1740167501211,-500.0,0.00011945,2]
[353962419,1740167501220,-643.32,0.00011945,2]
[353962420,1740167501232,-758.78,0.00011945,2]
[353962421,1740167501241,-582.11,0.00011945,2]
[353962422,1740167501251,-500.0,0.00011945,2]
[353962423,1740167501260,-500.0,0.00011945,2]
[353962424,1740167501269,-500.0,0.00011945,2]
[353962425,1740167501279,-555.11,0.00011945,2]
[353962426,1740167501287,-730.45,0.00011945,2]
[353962427,1740167501297,-500.0,0.00011945,2]
[353962428,1740167501305,-644.32,0.00011945,2]
[353962429,1740167501315,-639.37,0.00011945,2]
[353962430,1740167501324,-500.0,0.00011945,2]
[353962431,1740167501333,-500.0,0.00011945,2]
[353962432,1740167501342,-500.0,0.00011945,2]
[353962433,1740167501351,-831.04,0.00011945,2]
[353962434,1740167501360,-515.07,0.00011945,2]
[353962435,1740167501368,-625.71,0.00011945,2]
[353962436,1740167501377,-848.84,0.00011945,2]
[353962437,1740167501386,-822.17,0.00011945,2]
[353962438,1740167501395,-745.81,0.00011945,2]
[353962439,1740167501404,-500.0,0.00011945,2]
[353962440,1740167501413,-500.0,0.00011945,2]
[353962441,1740167501423,-919.32,0.00011945,2]
[353962442,1740167501432,-500.0,0.00011945,2]
[353962443,1740167501441,-500.0,0.00011945,2]
[353962444,1740167501450,-687.5,0.00011945,2]
[353962445,1740167501459,-500.0,0.00011945,2]
[353962446,1740167501469,-500.0,0.00011945,2]
[353962447,1740167501481,-197.09,0.00011945,2]
[353962448,1740167501491,-740.68,0.00011945,2]
[353962449,1740167501502,-500.0,0.00011945,2]
[353962450,1740167501511,-905.88,0.00011945,2]
[353962451,1740167501521,-628.8,0.00011945,2]
[353962452,1740167501531,-1098.49,0.00011945,2]
[353962453,1740167501542,-500.0,0.00011945,2]
[353962454,1740167501551,-500.0,0.00011945,2]
[353962455,1740167501560,-857.44,0.00011945,2]
[353962456,1740167501570,-809.24,0.00011945,2]
[353962457,1740167501579,-1331.51,0.00011945,2]
[353962458,1740167501588,-754.01,0.00011945,2]
[353962459,1740167501598,-542.87,0.00011945,2]
[353962460,1740167501607,-1013.68,0.00011945,2]
[353962461,1740167501616,-953.54,0.00011945,2]
[353962462,1740167501625,-750.4,0.00011945,2]
[353962463,1740167501634,-687.42,0.00011945,2]
[353962464,1740167501644,-738.46,0.00011945,2]
[353962465,1740167501653,-1329.27,0.00011945,2]
[353962466,1740167501662,-1176.97,0.00011945,2]
[353962467,1740167501671,-923.81,0.00011945,2]
[353962468,1740167501681,-571.1,0.00011945,2]
[353962469,1740167501691,-615.92,0.00011945,2]
[353962470,1740167501700,-1145.31,0.00011945,2]
[353962471,1740167501711,-500.0,0.00011945,2]
[353962472,1740167501722,-524.1,0.00011945,2]
[353962473,1740167501735,-500.0,0.00011945,2]
[353962474,1740167501744,-680.76,0.00011945,2]
[353962475,1740167501755,-799.15,0.00011945,2]
[353962476,1740167501764,-1285.44,0.00011945,2]
[353962477,1740167501774,-1586.6,0.00011945,2]
[353962478,1740167501783,-514.98,0.00011945,2]
[353962479,1740167501794,-626.99,0.00011945,2]
[353962480,1740167501804,-687.0,0.00011945,2]
[353962481,1740167501813,-763.06,0.00011945,2]
[353962482,1740167501822,-836.24,0.00011945,2]
[353962483,1740167501831,-500.0,0.00011945,2]
[353962484,1740167501840,-741.66,0.00011945,2]
[353962485,1740167501849,-976.83,0.00011945,2]
[353962486,1740167501858,-493.08460395,0.00011945,2]
[353962487,1740167501867,-1826.83,0.00011945,2]
[353962488,1740167501876,-1648.87,0.00011945,2]
[353962489,1740167501886,-822.42,0.00011945,2]
[353962490,1740167501895,-371.33859709,0.00011945,2]
[353962491,1740167501904,-1061.87,0.00011945,2]
[353962492,1740167501913,-1122.92,0.00011945,2]
[353962493,1740167501922,-818.95,0.00011945,2]
[353962494,1740167501931,-769.98,0.00011945,2]
[353962495,1740167501940,-652.38,0.00011945,2]
[353962496,1740167501949,-500.0,0.00011945,2]
[353962497,1740167501957,-569.49,0.00011945,2]
[353962498,1740167501967,-500.0,0.00011945,2]
[353962499,1740167501978,-778.95,0.00011945,2]
[353962500,1740167501987,-500.0,0.00011945,2]
[353962501,1740167501996,-500.0,0.00011945,2]
[353962502,1740167502007,-1811.38,0.00011945,2]
[353962503,1740167502015,-575.2,0.00011945,2]
[353962504,1740167502024,-982.85,0.00011945,2]
[353962505,1740167502034,-717.22,0.00011945,2]
[353962506,1740167502044,-1375.27,0.00011945,2]
[353962507,1740167502054,-893.56,0.00011945,2]
[353962508,1740167502064,-500.0,0.00011945,2]
[353962509,1740167502073,-809.42,0.00011945,2]
[353962510,1740167502083,-1319.65,0.00011945,2]
[353962511,1740167502092,-1036.04,0.00011945,2]
[353962512,1740167502100,-1242.28,0.00011945,2]
[353962513,1740167502110,-617.56,0.00011945,2]
[353962514,1740167502119,-500.0,0.00011945,2]
[353962515,1740167502128,-625.0,0.00011945,2]
[353962516,1740167502137,-948.12,0.00011945,2]
[353962517,1740167502146,-500.0,0.00011945,2]
[353962518,1740167502156,-1022.36,0.00011945,2]
[353962519,1740167502165,-854.65,0.00011945,2]
[353962520,1740167502174,-926.96,0.00011945,2]
[353962521,1740167502183,-969.71,0.00011945,2]
[353962522,1740167502193,-500.0,0.00011945,2]
[353962523,1740167502204,-810.4,0.00011945,2]
[353962524,1740167502213,-615.07,0.00011945,2]
[353962525,1740167502223,-311.58945272,0.00011945,2]
[353962526,1740167502234,-1192.04,0.00011945,2]
[353962527,1740167502243,-508.53,0.00011945,2]
[353962528,1740167502252,-672.33,0.00011945,2]
[353962529,1740167502261,-1908.9,0.00011945,2]
[353962530,1740167502270,-1359.44,0.00011945,2]
[353962531,1740167502279,-902.67,0.00011945,2]
[353962532,1740167502288,-1423.88,0.00011945,2]
[353962533,1740167502297,-717.68,0.00011945,2]
[353962534,1740167502307,-1211.55,0.00011945,2]
[353962535,1740167502316,-2188.61,0.00011945,2]
[353962536,1740167502325,-1759.15,0.00011945,2]
[353962537,1740167502334,-697.64,0.00011945,2]
[353962538,1740167502343,-986.02,0.00011945,2]
[353962539,1740167502352,-1662.17,0.00011945,2]
[353962540,1740167502362,-500.0,0.00011945,2]
[353962541,1740167502371,-1297.0,0.00011945,2]
[353962542,1740167502380,-500.0,0.00011945,2]
[353962543,1740167502390,-861.11,0.00011945,2]
[353962544,1740167502399,-925.5,0.00011945,2]
[353962545,1740167502408,-1460.13,0.00011945,2]
[353962546,1740167502417,-596.42,0.00011945,2]
[353962547,1740167502427,-500.0,0.00011945,2]
[353962548,1740167502437,-500.0,0.00011945,2]
[353962549,1740167502447,-500.0,0.00011945,2]
[353962550,1740167502457,-1381.05,0.00011945,2]
[353962551,1740167502466,-707.75,0.00011945,2]
[353962552,1740167502475,-905.98,0.00011945,2]
[353962553,1740167502486,-511.21,0.00011945,2]
[353962554,1740167502496,-500.0,0.00011945,2]
[353962555,1740167502691,-645.45,0.00011945,2]
[353962556,1740167502701,-600.11,0.00011945,2]
[353962557,1740167502711,-1101.61,0.00011945,2]
[353962558,1740167502720,-1349.02,0.00011945,2]
[353962559,1740167502733,-1210.32,0.00011945,2]
[353962560,1740167502743,-599.64,0.00011945,2]
[353962561,1740167502752,-794.86,0.00011945,2]
[353962562,1740167502761,-500.0,0.00011945,2]
[353962563,1740167502770,-901.02,0.00011945,2]
[353962564,1740167502779,-500.0,0.00011945,2]
[353962565,1740167502789,-856.94,0.00011945,2]
[353962566,1740167502798,-964.92,0.00011945,2]
[353962567,1740167502809,-1325.37,0.00011945,2]
[353962568,1740167502819,-500.0,0.00011945,2]
[353962569,1740167502828,-1325.36,0.00011945,2]
[353962570,1740167502837,-500.0,0.00011945,2]
[353962571,1740167502846,-500.0,0.00011945,2]
[353962572,1740167502855,-777.44,0.00011945,2]
[353962573,1740167502863,-1387.99,0.00011945,2]
[353962574,1740167502873,-500.0,0.00011945,2]
[353962575,1740167502882,-500.0,0.00011945,2]
[353962576,1740167502891,-1448.95,0.00011945,2]
[353962577,1740167502901,-500.0,0.00011945,2]
[353962578,1740167502910,-724.59,0.00011945,2]
[353962579,1740167502919,-908.66,0.00011945,2]
[353962580,1740167502928,-857.07,0.00011945,2]
[353962581,1740167502936,-825.21,0.00011945,2]
[353962582,1740167502946,-874.13,0.00011945,2]
[353962583,1740167502955,-500.0,0.00011945,2]
[353962584,1740167502965,-415.41864842,0.00011945,2]
[353962585,1740167502973,-1679.67,0.00011945,2]
[353962586,1740167502984,-500.0,0.00011945,2]
[353962587,1740167502993,-500.0,0.00011945,2]
[353962588,1740167503003,-500.0,0.00011945,2]
[353962589,1740167503012,-1120.09,0.00011945,2]
[353962590,1740167503021,-684.04,0.00011945,2]
[353962591,1740167503030,-1184.73,0.00011945,2]
[353962592,1740167503039,-934.86,0.00011945,2]
[353962593,1740167503049,-1633.04,0.00011945,2]
[353962594,1740167503059,-666.09,0.00011945,2]
[353962595,1740167503069,-814.84,0.00011945,2]
[353962596,1740167503078,-1339.09,0.00011945,2]
[353962597,1740167503088,-1290.16,0.00011945,2]
[353962598,1740167503097,-600.21,0.00011945,2]
[353962599,1740167503107,-566.0,0.00011945,2]
[353962600,1740167503116,-1207.48,0.00011945,2]
[353962601,1740167503125,-1444.01,0.00011945,2]
[353962602,1740167503134,-3450.46,0.00011945,2]
[353962603,1740167503144,-1395.85,0.00011945,2]
[353962604,1740167503154,-500.0,0.00011945,2]
[353962605,1740167503163,-1125.15,0.00011945,2]
[353962606,1740167503172,-500.0,0.00011945,2]
[353962607,1740167503182,-1047.03,0.00011945,2]
[353962608,1740167503193,-537.84,0.00011945,2]
[353962609,1740167503203,-959.73,0.00011945,2]
[353962610,1740167503212,-500.0,0.00011945,2]
[353962611,1740167503222,-2785.17,0.00011945,2]
[353962612,1740167503232,-706.89,0.00011945,2]
[353962613,1740167503242,-611.17,0.00011945,2]
[353962614,1740167503251,-500.0,0.00011945,2]
[353962615,1740167503261,-331.01921161,0.00011945,2]
[353962616,1740167503270,-819.59,0.00011945,2]
[353962617,1740167503279,-156.045622,0.00011945,2]
[353962618,1740167503289,-525.67,0.00011945,2]
[353962619,1740167503299,-853.79,0.00011945,2]
[353962620,1740167503309,-1799.84,0.00011945,2]
[353962621,1740167503318,-500.0,0.00011945,2]
[353962622,1740167503328,-2465.29,0.00011945,2]
[353962623,1740167503337,-3543.95,0.00011945,2]
[353962624,1740167503347,-779.77,0.00011945,2]
[353962625,1740167503356,-1421.65,0.00011945,2]
[353962626,1740167503366,-382.093165,0.00011945,2]
[353962627,1740167503375,-1897.92,0.00011945,2]
[353962628,1740167503385,-2898.71,0.00011945,2]
[353962629,1740167503394,-208.27958394,0.00011945,2]
[353962630,1740167503650,-370.13164344,0.00011945,2]
[353962631,1740167503661,-455.772006,0.00011945,2]
[353962632,1740167503688,-500.0,0.00010957,2]
[353962633,1740167503698,-391.45676662,0.00011945,2]
[353962634,1740167503709,-749.44,0.00011945,2]
[353962635,1740167503722,-1833.48,0.00011945,2]
[353962636,1740167503735,-639.64,0.00011945,2]
[353962637,1740167503745,-500.0,0.00011945,2]
[353962638,1740167503755,-162.18092897,0.00011945,2]
[353962639,1740167503766,-2412.67,0.00011945,2]
[353962640,1740167503776,-1306.89,0.00011945,2]
[353962641,1740167503786,-500.0,0.00011945,2]
[353962642,1740167503796,-2034.14,0.00011945,2]
[353962643,1740167503807,-500.0,0.00011945,2]
[353962644,1740167503816,-1718.20586473,0.00011945,2]
[353962645,1740167503828,-358.44413527,0.00011945,2]
[353962646,1740167503838,-411.63655044,0.00011945,2]
[353962647,1740167503850,-563.28344956,0.00011945,2]
[353962648,1740167503860,-682.16655037,0.00011945,2]
[353962649,1740167503871,-630.675007,0.00011945,2]
[353962650,1740168141912,154.48,8.767e-05,2]
[353962652,1740168451883,551.1,8.219e-05,2]
[353962665,1740168631595,-936.67725654,9.725e-05,2]
[353962666,1740168631606,-80.11274346,9.725e-05,2]
[353962667,1740168631615,-483.21,0.0001,2]
[353962668,1740168631643,-66.79,0.0001,2]
[353962669,1740168631652,-199.26339684,0.00010175,2]
[353962670,1740168631661,-6.75628188,0.00010255,2]
[353962671,1740168631672,-145.02371812,0.00010255,2]
[353962672,1740168631681,-209.62,0.00010274,2]
[353962673,1740168631690,-62.58621738,0.00010274,2]
[353962674,1740168631701,-187.41378262,0.00010274,2]
[353962675,1740168631710,-151.78,0.00010285,2]
[353962676,1740168631719,-151.78,0.00010314,2]
[353962677,1740168631728,-131.15647918,0.00010343,2]
[353962678,1740168631739,-20.62352082,0.00010343,2]
[353962679,1740168631748,-150.0,0.00010356,2]
[353962680,1740168631757,-116.06406498,0.00010356,2]
[353962681,1740168631768,-33.93593502,0.00010356,2]
[353962682,1740168631777,-150.0,0.00010356,2]
[353962683,1740168631786,-217.83869598,0.00010356,2]
[353962684,1740168631795,-94.99536,0.00010373,2]
[353962685,1740168631806,-56.78464,0.00010373,2]
[353962686,1740168631815,-151.78,0.00010402,2]
[353962687,1740168631824,-151.78,0.00010431,2]
[353962688,1740168631833,-407.87028302,0.00010459,2]
[353962689,1740168631844,-143.22971698,0.00010459,2]
[353962690,1740168631853,-151.78,0.0001046,2]
[353962691,1740168631862,-138.24428308,0.00010484,2]
[353962692,1740168631874,-348.816881,0.00010484,2]
[353962693,1740168631884,-269.46,0.00010484,2]
[353962694,1740168631895,-243.47883592,0.00010484,2]
[353962695,1740168631904,-704.77,0.00010488,2]
[353962696,1740168631913,-151.78,0.0001049,2]
[353962697,1740168631923,-151.78,0.00010519,2]
[353962698,1740168631931,-151.78,0.00010548,2]
[353962699,1740168631941,-85.48217212,0.00010578,2]
[353962700,1740168632001,-66.29782788,0.00010578,2]
[353962701,1740168632010,-151.78,0.00010607,2]
[353962702,1740168632020,-300.0,0.00010615,2]
[353962703,1740168632030,-1033.37,0.00010616,2]
[353962704,1740168632039,-151.78,0.00010636,2]
[353962705,1740168632049,-151.78,0.00010665,2]
[353962706,1740168632058,-150.0,0.00010858,2]
[353962707,1740168632067,-199.26339684,0.00010858,2]
[353962709,1740168632076,-7821.6824,0.00010858,2]
[353962711,1740168632085,-150.0,0.00010932,2]
[353962712,1740168632095,-150.0,0.00010932,2]
[353962714,1740168632107,-493.46,0.00010957,2]
[353962716,1740168632116,-508.03,0.00010957,2]
[353962718,1740168632125,-507.14,0.00010957,2]
[353962720,1740168632134,-502.19,0.00010957,2]
[353962722,1740168632145,-499.43,0.00010957,2]
[353962724,1740168632155,-496.13,0.00010957,2]
[353962726,1740168632164,-500.0,0.00010957,2]
[353962728,1740168632174,-382.17895416,0.00010957,2]
[353962730,1740168632186,-500.0,0.00010957,2]
[353962732,1740168632195,-500.0,0.00010957,2]
[353962734,1740168632205,-500.0,0.00010957,2]
[353962736,1740168632215,-500.0,0.00010957,2]
[353962739,1740168632225,-550.0,0.00010957,2]
[353962742,1740168632234,-175.25457586,0.00010957,2]
[353962745,1740168632244,-426.79709903,0.00010957,2]
[353962748,1740168632255,-500.0,0.00010957,2]
[353962751,1740168632266,-500.0,0.00010957,2]
[353962753,1740168632276,-500.0,0.00010957,2]
[353962755,1740168632286,-500.0,0.00010957,2]
[353962757,1740168632296,-500.0,0.00010957,2]
[353962759,1740168632306,-500.0,0.00010957,2]
[353962761,1740168632315,-500.0,0.00010957,2]
[353962763,1740168632325,-500.0,0.00010957,2]
[353962765,1740168632335,-500.0,0.00010957,2]
[353962767,1740168632345,-542.85392151,0.00010957,2]
[353962769,1740168632357,-500.0,0.00010957,2]
[353962771,1740168632367,-500.0,0.00010958,2]
[353962773,1740168632377,-500.0,0.00010958,2]
[353962775,1740168632387,-500.0,0.00010958,2]
[353962777,1740168632396,-500.0,0.00010958,2]
[353962779,1740168632407,-500.0,0.00010958,2]
[353962781,1740168632416,-500.0,0.00010958,2]
[353962783,1740168632425,-620.79,0.00010958,2]
[353962785,1740168632435,-500.0,0.00010958,2]
[353962787,1740168632445,-500.0,0.00010958,2]
[353962789,1740168632455,-500.0,0.00010958,2]
[353962791,1740168632465,-579.62629708,0.00010958,2]
[353962793,1740168632474,-500.0,0.00010958,2]
[353962795,1740168632484,-500.0,0.00010958,2]
[353962797,1740168632493,-500.0,0.00010958,2]
[353962799,1740168632503,-500.0,0.00010958,2]
[353962801,1740168632513,-507.73304029,0.00010958,2]
[353962803,1740168632522,-500.0,0.00010958,2]
[353962805,1740168632532,-305.98594797,0.00010958,2]
[353962808,1740168632542,-500.0,0.00010958,2]
[353962809,1740168632551,-504.80667227,0.00010958,2]
[353962811,1740168632560,-532.57,0.00010958,2]
[353962813,1740168632569,-500.0,0.00010958,2]
[353962815,1740168632579,-500.0,0.00010958,2]
[353962817,1740168632591,-734.67,0.00010958,2]
[353962819,1740168632600,-500.0,0.00010958,2]
[353962821,1740168632609,-500.0,0.00010958,2]
[353962823,1740168632618,-505.46749097,0.00010958,2]
[353962825,1740168632627,-527.13026115,0.00010958,2]
[353962827,1740168632636,-740.3,0.00010958,2]
[353962829,1740168632646,-500.0,0.00010958,2]
[353962832,1740168632655,-655.15,0.00010958,2]
[353962834,1740168632664,-500.0,0.00010958,2]
[353962835,1740168632674,-500.0,0.00010958,2]
[353962837,1740168632683,-654.83,0.00010958,2]
[353962839,1740168632692,-500.0,0.00010958,2]
[353962841,1740168632701,-502.02543627,0.00010958,2]
[353962843,1740168632713,-500.0,0.00010958,2]
[353962845,1740168632731,-223.48610274,0.00010958,2]
[353962847,1740168632741,-506.19,0.00010958,2]
[353962849,1740168632751,-500.0,0.00010958,2]
[353962852,1740168632762,-589.75,0.00010958,2]
[353962853,1740168632771,-514.47,0.00010958,2]
[353962856,1740168632781,-606.48,0.00010958,2]
[353962858,1740168632790,-500.0,0.00010958,2]
[353962859,1740168632800,-500.0,0.00010958,2]
[353962861,1740168632810,-500.0,0.00010958,2]
[353962864,1740168632819,-500.0,0.00010958,2]
[353962865,1740168632828,-537.8,0.00010958,2]
[353962867,1740168632837,-500.0,0.00010958,2]
[353962870,1740168632847,-500.0,0.00010958,2]
[353962871,1740168632856,-500.0,0.00010958,2]
[353962873,1740168632866,-787.25,0.00010958,2]